fUSD/lending_fUSD_20240909
["ID","MTS","AMOUNT","RATE_DAILY","PERIOD"]
[337626542,1725900646690,-2163.19,0.00014794,2]
[337626544,1725900646699,-815.91826982,0.00014794,2]
[337626546,1725900646708,-2163.19,0.00014794,2]
[337626548,1725900646718,-2163.19,0.00014794,2]
[337626550,1725900646729,-2163.19,0.00014794,2]
[337626552,1725900646738,-500.0,0.00014794,2]
[337626554,1725900646747,-2163.19,0.00014794,2]
[337626555,1725900646757,-500.0,0.00014794,2]
[337626558,1725900646767,-2163.19,0.00014794,2]
[337626560,1725900646776,-500.0,0.00014794,2]
[337626561,1725900646786,-2163.19,0.00014794,2]
[337626563,1725900646795,-500.0,0.00014794,2]
[337626565,1725900646805,-2163.19,0.00014794,2]
[337626567,1725900646814,-500.0,0.00014794,2]
[337626569,1725900646824,-2163.19,0.00014794,2]
[337626571,1725900646834,-500.0,0.00014794,2]
[337626573,1725900646843,-1355.95,0.00014794,2]
[337626575,1725900646853,-500.0,0.00014794,2]
[337626577,1725900646863,-500.0,0.00014794,2]
[337626579,1725900646875,-1355.95,0.00014794,2]
[337626581,1725900646885,-2163.19,0.00014794,2]
[337626583,1725900646896,-500.0,0.00014794,2]
[337626586,1725900646905,-1355.95,0.00014794,2]
[337626587,1725900646914,-200.0,0.00014794,2]
[337626589,1725900646925,-2163.19,0.00014794,2]
[337626591,1725900646934,-500.0,0.00014794,2]
[337626593,1725900646943,-1355.95,0.00014794,2]
[337626595,1725900646953,-2163.19,0.00014794,2]
[337626598,1725900646965,-500.0,0.00014794,2]
[337626600,1725900646975,-1355.95,0.00014794,2]
[337626602,1725900646986,-2163.19,0.00014794,2]
[337626604,1725900646995,-500.0,0.00014794,2]
[337626606,1725900647007,-1355.95,0.00014794,2]
[337626608,1725900647016,-2163.19,0.00014794,2]
[337626610,1725900647026,-500.0,0.00014794,2]
[337626612,1725900647035,-1795.59,0.00014794,2]
[337626614,1725900647044,-2163.39246035,0.00014794,2]
[337626616,1725900647054,-1355.95,0.00014794,2]
[337626618,1725900647063,-500.0,0.00014794,2]
[337626620,1725900647073,-1795.59,0.00014794,2]
[337626622,1725900647082,-1355.95,0.00014794,2]
[337626624,1725900647092,-500.0,0.00014794,2]
[337626626,1725900647101,-1355.95,0.00014794,2]
[337626628,1725900647110,-1795.59,0.00014794,2]
[337626630,1725900647120,-500.0,0.00014794,2]
[337626632,1725900647129,-1795.59,0.00014794,2]
[337626634,1725900647138,-1355.95,0.00014794,2]
[337626636,1725900647147,-500.0,0.00014794,2]
[337626637,1725900647156,-1795.59,0.00014794,2]
[337626639,1725900647166,-1355.95,0.00014794,2]
[337626641,1725900647175,-568.91734191,0.00014794,2]
[337626643,1725900647184,-1355.95,0.00014794,2]
[337626645,1725900647193,-1795.59,0.00014794,2]
[337626647,1725900647203,-1355.95,0.00014794,2]
[337626649,1725900647212,-1795.59,0.00014794,2]
[337626651,1725900647221,-1355.95,0.00014794,2]
[337626653,1725900647230,-1795.59,0.00014794,2]
[337626655,1725900647240,-1355.95,0.00014794,2]
[337626657,1725900647249,-1355.95,0.00014794,2]
[337626659,1725900647263,-1795.59,0.00014794,2]
[337626661,1725900647272,-1355.95,0.00014794,2]
[337626663,1725900647281,-1795.59,0.00014794,2]
[337626665,1725900647290,-1355.95,0.00014794,2]
[337626667,1725900647301,-1795.59,0.00014794,2]
[337626669,1725900647310,-500.0,0.00014794,2]
[337626670,1725900647319,-1355.95,0.00014794,2]
[337626672,1725900647331,-1795.59,0.00014794,2]
[337626674,1725900647340,-500.0,0.00014794,2]
[337626676,1725900647350,-1355.95,0.00014794,2]
[337626678,1725900647360,-1795.59,0.00014794,2]
[337626680,1725900647369,-500.0,0.00014794,2]
[337626682,1725900647379,-1795.59,0.00014794,2]
[337626684,1725900647388,-570.16305038,0.00014794,2]
[337626686,1725900647397,-1355.95,0.00014794,2]
[337626688,1725900647406,-1795.59,0.00014794,2]
[337626690,1725900647415,-1355.95,0.00014794,2]
[337626692,1725900647427,-1795.59,0.00014794,2]
[337626694,1725900647436,-1795.59,0.00014794,2]
[337626695,1725900647445,-1795.59,0.00014794,2]
[337626697,1725900647455,-1795.59,0.00014794,2]
[337626699,1725900647464,-1795.59,0.00014794,2]
[337626701,1725900647473,-500.0,0.00014794,2]
[337626703,1725900647484,-1795.59,0.00014794,2]
[337626705,1725900647493,-1795.59,0.00014794,2]
[337626707,1725900647502,-500.0,0.00014794,2]
[337626709,1725900647512,-1355.95,0.00014794,2]
[337626711,1725900647521,-1795.59,0.00014794,2]
[337626713,1725900647530,-500.0,0.00014794,2]
[337626715,1725900647539,-1356.18799729,0.00014794,2]
[337626717,1725900647549,-1795.72221234,0.00014794,2]
[337626719,1725900647558,-500.0,0.00014794,2]
[337626721,1725900647567,-305.03395556,0.00014794,2]
[337626723,1725900647576,-500.0,0.00014794,2]
[337626725,1725900647585,-500.0,0.00014794,2]
[337626727,1725900647594,-500.0,0.00014794,2]
[337626729,1725900647604,-500.0,0.00014794,2]
[337626730,1725900647613,-500.0,0.00014794,2]
[337626732,1725900647623,-500.0,0.00014794,2]
[337626734,1725900647632,-1010.02,0.00014794,2]
[337626736,1725900647642,-500.0,0.00014794,2]
[337626738,1725900647651,-500.0,0.00014794,2]
[337626740,1725900647661,-500.0,0.00014794,2]
[337626742,1725900647673,-1010.02,0.00014794,2]
[337626744,1725900647683,-500.0,0.00014794,2]
[337626746,1725900647692,-500.0,0.00014794,2]
[337626748,1725900647702,-500.0,0.00014794,2]
[337626750,1725900647711,-500.0,0.00014794,2]
[337626752,1725900647721,-500.0,0.00014794,2]
[337626754,1725900647731,-500.0,0.00014794,2]
[337626756,1725900647741,-500.0,0.00014794,2]
[337626757,1725900647750,-1010.02,0.00014794,2]
[337626759,1725900647759,-500.0,0.00014794,2]
[337626761,1725900647768,-500.0,0.00014794,2]
[337626763,1725900647777,-1010.02,0.00014794,2]
[337626765,1725900647787,-568.85797102,0.00014794,2]
[337626767,1725900647797,-500.0,0.00014794,2]
[337626769,1725900647806,-1010.02,0.00014794,2]
[337626771,1725900647816,-500.0,0.00014794,2]
[337626773,1725900647825,-1010.02,0.00014794,2]
[337626775,1725900647835,-1010.02,0.00014794,2]
[337626777,1725900647845,-1010.02,0.00014794,2]
[337626779,1725900647854,-1010.02,0.00014794,2]
[337626781,1725900647864,-1010.02,0.00014794,2]
[337626783,1725900647873,-1010.02,0.00014794,2]
[337626785,1725900647882,-1349.58,0.00014794,2]
[337626787,1725900647891,-1260.22,0.00014794,2]
[337626788,1725900647900,-1010.02,0.00014794,2]
[337626790,1725900647909,-1349.58,0.00014794,2]
[337626792,1725900647919,-1349.58,0.00014794,2]
[337626794,1725900647929,-1010.02,0.00014794,2]
[337626796,1725900647938,-1260.22,0.00014794,2]
[337626798,1725900647947,-1349.58,0.00014794,2]
[337626800,1725900647956,-1010.02,0.00014794,2]
[337626802,1725900647965,-1260.22,0.00014794,2]
[337626804,1725900647974,-1010.02,0.00014794,2]
[337626806,1725900647983,-1349.58,0.00014794,2]
[337626808,1725900647992,-1260.22,0.00014794,2]
[337626810,1725900648001,-1010.02,0.00014794,2]
[337626811,1725900648010,-1349.58,0.00014794,2]
[337626813,1725900648019,-1260.22,0.00014794,2]
[337626815,1725900648029,-1010.02,0.00014794,2]
[337626817,1725900648038,-1349.58,0.00014794,2]
[337626819,1725900648047,-1010.02,0.00014794,2]
[337626821,1725900648056,-1349.58,0.00014794,2]
[337626823,1725900648066,-1010.02,0.00014794,2]
[337626825,1725900648075,-1260.22,0.00014794,2]
[337626827,1725900648084,-1349.58,0.00014794,2]
[337626829,1725900648093,-1010.02,0.00014794,2]
[337626831,1725900648102,-1349.58,0.00014794,2]
[337626833,1725900648112,-1260.22,0.00014794,2]
[337626835,1725900648121,-1010.02,0.00014794,2]
[337626837,1725900648131,-1349.58,0.00014794,2]
[337626839,1725900648141,-849.3862595,0.00014794,2]
[337627165,1725900672272,750.0,0.00011,2]
[337627166,1725900675522,155.09,0.00010959,2]
[337627167,1725900788118,1541.5482866,0.00028,120]
[337627168,1725901116847,224.52740972,0.00028,120]
[337627169,1725901122164,424.3,0.00011881,2]
[337627171,1725901690635,429.82,0.00011435,2]
[337627172,1725901741010,160.76,0.00010959,2]
[337627188,1725901831650,-800.0,0.00013,2]
[337627189,1725901831661,-166.02,0.00013,2]
[337627190,1725901831672,-300.0,0.00013092,2]
[337627191,1725901831681,-1530.18484001,0.00013093,2]
[337627192,1725901831691,-1103.769575,0.00013093,2]
[337627193,1725901831701,-154.36238,0.00013093,2]
[337627194,1725901831711,-152.714662,0.00013093,2]
[337627195,1725901831720,-829.376905,0.00013093,2]
[337627196,1725901831730,-636.33267172,0.00013256,2]
[337627197,1725901831742,-467.43690328,0.00013256,2]
[337627198,1725901831752,-432.56309672,0.00013256,2]
[337627199,1725901831765,-396.81380828,0.00013256,2]
[337627200,1725901831774,-49.64472896,0.00013332,2]
[337627201,1725901831808,-617.82527104,0.00013332,2]
[337627202,1725901831819,-160.66,0.00013332,2]
[337627203,1725901831829,-160.66,0.00013335,2]
[337627204,1725901831838,-160.66,0.00013339,2]
[337627205,1725901831847,-160.66,0.00013342,2]
[337627206,1725901831857,-160.66,0.00013346,2]
[337627207,1725901831866,-160.66,0.00013349,2]
[337627208,1725901831876,-160.66,0.00013353,2]
[337627209,1725901831886,-160.66,0.00013356,2]
[337627210,1725901831895,-160.66,0.0001336,2]
[337627211,1725901831905,-758.48,0.00013362,2]
[337627212,1725901831915,-160.66,0.00013363,2]
[337627213,1725901831925,-160.66,0.00013367,2]
[337627214,1725901831934,-160.66,0.0001337,2]
[337627215,1725901831944,-160.66,0.00013374,2]
[337627216,1725901831954,-160.66,0.00013377,2]
[337627217,1725901831963,-160.66,0.00013381,2]
[337627218,1725901831973,-160.66,0.00013384,2]
[337627219,1725901831982,-160.66,0.00013388,2]
[337627220,1725901831992,-160.66,0.00013391,2]
[337627221,1725901832001,-160.66,0.00013395,2]
[337627222,1725901832010,-160.66,0.00013398,2]
[337627223,1725901832020,-1103.769575,0.0001342,2]
[337627225,1725901832029,-829.376905,0.0001342,2]
[337627227,1725901832038,-1000.0,0.00013464,2]
[337627229,1725901832047,-156.79,0.00013504,2]
[337627231,1725901832057,-23900.0,0.00013546,2]
[337627233,1725901832068,-1103.769575,0.00013584,2]
[337627235,1725901832077,-829.376905,0.00013584,2]
[337627237,1725901832087,-217.21,0.00013587,2]
[337627239,1725901832096,-250.0,0.00013597,2]
[337627241,1725901832105,-250.0,0.00013633,2]
[337627243,1725901832114,-429.82,0.00013698,2]
[337627245,1725901832123,-169.42,0.00013699,2]
[337627247,1725901832133,-5687.47,0.00013699,2]
[337627249,1725901832142,-167.03,0.00013711,2]
[337627251,1725901832151,-5348.55,0.00013711,2]
[337627253,1725901832161,-1103.769575,0.00013747,2]
[337627255,1725901832170,-829.376905,0.00013747,2]
[337627257,1725901832179,-150.0,0.00013772,2]
[337627259,1725901832189,-10062.0,0.00013773,2]
[337627261,1725901832198,-500.0,0.00013896,2]
[337627263,1725901832208,-2246.09,0.00013896,2]
[337627265,1725901832218,-311.09,0.00013896,2]
[337627268,1725901832229,-200.0,0.00013915,2]
[337627270,1725901832238,-156.62,0.00014079,2]
[337627272,1725901832247,-150.0,0.00014097,2]
[337627273,1725901832256,-420.0,0.00014356,2]
[337627275,1725901832265,-150.0,0.00014525,2]
[337627278,1725901832275,-10966.956,0.00014578,2]
[337627279,1725901832284,-886.62472204,0.00014594,2]
[337627281,1725901832293,-886.62472202,0.00014605,2]
[337627283,1725901832303,-886.62472202,0.00014616,2]
[337627285,1725901832315,-275.34841468,0.00014622,2]
[337627287,1725901832324,-886.62472202,0.00014627,2]
[337627289,1725901832333,-886.62472202,0.00014638,2]
[337627291,1725901832342,-917.53,0.00014647,2]
[337627294,1725901832352,-248.164,0.00014647,2]
[337627295,1725901832361,-886.62472202,0.0001465,2]
[337627296,1725901832370,-2423.26563,0.0001465,2]
[337627297,1725901832379,-886.62472202,0.00014661,2]
[337627298,1725901832389,-886.62472202,0.00014672,2]
[337627299,1725901832398,-886.62472202,0.00014683,2]
[337627300,1725901832408,-578.0776,0.00014684,2]
[337627301,1725901832418,-1906.816,0.00014684,2]
[337627302,1725901832429,-67882.4451,0.00014684,2]
[337627303,1725901832440,-14922.9551,0.00014694,2]
[337627304,1725901832450,-7500.0,0.00014694,2]
[337627305,1725901832458,-324.63891237,0.00014694,2]
[337627306,1725901832678,-886.62472202,0.00014694,2]
[337627307,1725901832694,-150.0,0.000147,2]
[337627308,1725901832704,-507.0885763,0.00014733,2]
[337627309,1725901832715,-500.0,0.00014773,2]
[337627310,1725901832724,-35885.536022,0.00014774,2]
[337627311,1725901832735,-237.4765173,0.00014774,2]
[337627312,1725901832745,-152.9,0.00014774,2]
[337627313,1725901832754,-36238.37544664,0.0001478,2]
[337627314,1725901832763,-536.83810701,0.00014783,2]
[337627315,1725901832774,-243.86322988,0.00014783,2]
[337627316,1725901832783,-17942.768011,0.00014784,2]
[337627317,1725901832794,-158127.26291566,0.00014784,2]
[337627318,1725901832806,-9027.01825,0.00014784,2]
[337627319,1725901832820,-369.0,0.00014784,2]
[337627320,1725901832831,-2299.76847704,0.00014784,2]
[337627321,1725901832842,-3623.7077973,0.00014784,2]
[337627322,1725901832851,-14795.13695872,0.00014784,2]
[337627323,1725901832862,-1437.62195802,0.00014784,2]
[337627324,1725901832894,-766.71121484,0.00014784,2]
[337627325,1725901832905,-136064.37509693,0.00014784,2]
[337627326,1725901832916,-481.470523,0.00014784,2]
[337627327,1725901832939,-3741.59974573,0.00014784,2]
[337627328,1725901832951,-105443.64393976,0.00014784,2]
[337627329,1725901832960,-154.215995,0.00014794,2]
[337627330,1725901832970,-154.215995,0.00014794,2]
[337627331,1725901832979,-154.215995,0.00014794,2]
[337627332,1725901832988,-154.215995,0.00014794,2]
[337627333,1725901832998,-154.215995,0.00014794,2]
[337627334,1725901833007,-154.215995,0.00014794,2]
[337627335,1725901833017,-154.215995,0.00014794,2]
[337627336,1725901833026,-154.215995,0.00014794,2]
[337627337,1725901833036,-154.215995,0.00014794,2]
[337627338,1725901833047,-154.215995,0.00014794,2]
[337627339,1725901833056,-154.215995,0.00014794,2]
[337627340,1725901833069,-500.0,0.00014794,2]
[337627341,1725901833078,-500.0,0.00014794,2]
[337627342,1725901833088,-500.0,0.00014794,2]
[337627343,1725901833098,-500.0,0.00014794,2]
[337627344,1725901833107,-500.0,0.00014794,2]
[337627345,1725901833117,-597.96398472,0.00014794,2]
[337627346,1725901833126,-500.0,0.00014794,2]
[337627347,1725901833136,-500.0,0.00014794,2]
[337627348,1725901833146,-500.0,0.00014794,2]
[337627349,1725901833156,-500.0,0.00014794,2]
[337627350,1725901833166,-500.0,0.00014794,2]
[337627351,1725901833175,-500.0,0.00014794,2]
[337627352,1725901833185,-500.0,0.00014794,2]
[337627353,1725901833195,-500.0,0.00014794,2]
[337627354,1725901833204,-500.0,0.00014794,2]
[337627355,1725901833213,-500.0,0.00014794,2]
[337627356,1725901833223,-500.0,0.00014794,2]
[337627357,1725901833233,-500.0,0.00014794,2]
[337627358,1725901833243,-500.0,0.00014794,2]
[337627359,1725901833252,-500.0,0.00014794,2]
[337627360,1725901833262,-500.0,0.00014794,2]
[337627361,1725901833271,-502.28377914,0.00014794,2]
[337627362,1725901833281,-500.0,0.00014794,2]
[337627363,1725901833290,-500.0,0.00014794,2]
[337627364,1725901833299,-500.0,0.00014794,2]
[337627365,1725901833309,-500.0,0.00014794,2]
[337627366,1725901833320,-500.0,0.00014794,2]
[337627367,1725901833330,-500.0,0.00014794,2]
[337627368,1725901833339,-500.0,0.00014794,2]
[337627369,1725901833349,-500.0,0.00014794,2]
[337627370,1725901833359,-500.0,0.00014794,2]
[337627371,1725901833369,-500.0,0.00014794,2]
[337627372,1725901833378,-207.702311,0.00014794,2]
[337627373,1725901833388,-207.702311,0.00014794,2]
[337627374,1725901833397,-514.35072574,0.00014794,2]
[337627375,1725901833406,-207.702311,0.00014794,2]
[337627376,1725901833416,-207.702311,0.00014794,2]
[337627377,1725901833425,-207.702311,0.00014794,2]
[337627378,1725901833434,-207.702311,0.00014794,2]
[337627379,1725901833444,-207.702311,0.00014794,2]
[337627380,1725901833453,-207.702311,0.00014794,2]
[337627381,1725901833463,-207.702311,0.00014794,2]
[337627382,1725901833472,-207.702311,0.00014794,2]
[337627383,1725901833481,-207.702311,0.00014794,2]
[337627384,1725901833490,-207.702311,0.00014794,2]
[337627385,1725901833500,-500.0,0.00014794,2]
[337627386,1725901833510,-207.702311,0.00014794,2]
[337627387,1725901833519,-500.0,0.00014794,2]
[337627388,1725901833530,-207.702311,0.00014794,2]
[337627389,1725901833540,-500.0,0.00014794,2]
[337627390,1725901833550,-207.702311,0.00014794,2]
[337627391,1725901833559,-500.0,0.00014794,2]
[337627392,1725901833571,-207.702311,0.00014794,2]
[337627393,1725901833582,-500.0,0.00014794,2]
[337627394,1725901833592,-207.702311,0.00014794,2]
[337627395,1725901833606,-500.0,0.00014794,2]
[337627396,1725901833616,-207.702311,0.00014794,2]
[337627397,1725901833626,-500.0,0.00014794,2]
[337627398,1725901833636,-207.702311,0.00014794,2]
[337627399,1725901833646,-621.88775733,0.00014794,2]
[337627400,1725901833655,-207.702311,0.00014794,2]
[337627401,1725901833665,-207.702311,0.00014794,2]
[337627402,1725901833676,-207.702311,0.00014794,2]
[337627403,1725901833686,-207.702311,0.00014794,2]
[337627404,1725901833696,-207.702311,0.00014794,2]
[337627405,1725901833705,-500.0,0.00014794,2]
[337627406,1725901833714,-500.0,0.00014794,2]
[337627407,1725901833724,-500.0,0.00014794,2]
[337627408,1725901833734,-500.0,0.00014794,2]
[337627409,1725901833743,-500.0,0.00014794,2]
[337627410,1725901833753,-500.0,0.00014794,2]
[337627411,1725901833762,-500.0,0.00014794,2]
[337627412,1725901833771,-500.0,0.00014794,2]
[337627413,1725901833781,-500.0,0.00014794,2]
[337627414,1725901833790,-500.0,0.00014794,2]
[337627415,1725901833800,-500.0,0.00014794,2]
[337627416,1725901833809,-500.0,0.00014794,2]
[337627417,1725901833821,-500.0,0.00014794,2]
[337627418,1725901833831,-229.8290759,0.00014794,2]
[337627419,1725901833841,-500.0,0.00014794,2]
[337627420,1725901833850,-500.0,0.00014794,2]
[337627421,1725901833860,-500.0,0.00014794,2]
[337627422,1725901833870,-500.0,0.00014794,2]
[337627423,1725901833880,-500.0,0.00014794,2]
[337627424,1725901833890,-500.0,0.00014794,2]
[337627425,1725901833899,-500.0,0.00014794,2]
[337627426,1725901833909,-500.0,0.00014794,2]
[337627427,1725901833919,-500.0,0.00014794,2]
[337627428,1725901833929,-500.0,0.00014794,2]
[337627429,1725901833938,-500.0,0.00014794,2]
[337627430,1725901833948,-500.0,0.00014794,2]
[337627431,1725901833957,-500.0,0.00014794,2]
[337627432,1725901833966,-500.0,0.00014794,2]
[337627433,1725901833976,-500.0,0.00014794,2]
[337627434,1725901833985,-500.0,0.00014794,2]
[337627435,1725901833995,-500.0,0.00014794,2]
[337627436,1725901834004,-500.0,0.00014794,2]
[337627437,1725901834013,-500.0,0.00014794,2]
[337627438,1725901834023,-462.14042052,0.00014794,2]
[337627439,1725901834033,-500.0,0.00014794,2]
[337627440,1725901834042,-500.0,0.00014794,2]
[337627441,1725901834052,-500.0,0.00014794,2]
[337627442,1725901834061,-338.56668385,0.00014794,2]
[337627443,1725901834072,-500.0,0.00014794,2]
[337627444,1725901834082,-500.0,0.00014794,2]
[337627445,1725901834091,-500.0,0.00014794,2]
[337627446,1725901834100,-500.0,0.00014794,2]
[337627447,1725901834109,-500.0,0.00014794,2]
[337627448,1725901834119,-500.0,0.00014794,2]
[337627449,1725901834129,-500.0,0.00014794,2]
[337627450,1725901834138,-500.0,0.00014794,2]
[337627451,1725901834148,-500.0,0.00014794,2]
[337627452,1725901834157,-500.0,0.00014794,2]
[337627453,1725901834167,-383.76167785,0.00014794,2]
[337627454,1725901834177,-500.0,0.00014794,2]
[337627455,1725901834187,-500.0,0.00014794,2]
[337627456,1725901834197,-500.0,0.00014794,2]
[337627457,1725901834207,-500.0,0.00014794,2]
[337627458,1725901834216,-500.0,0.00014794,2]
[337627459,1725901834225,-500.0,0.00014794,2]
[337627460,1725901834235,-500.0,0.00014794,2]
[337627461,1725901834245,-500.0,0.00014794,2]
[337627462,1725901834254,-500.0,0.00014794,2]
[337627463,1725901834263,-500.0,0.00014794,2]
[337627464,1725901834273,-500.0,0.00014794,2]
[337627465,1725901834283,-500.0,0.00014794,2]
[337627466,1725901834293,-500.0,0.00014794,2]
[337627467,1725901834303,-500.0,0.00014794,2]
[337627468,1725901834312,-500.0,0.00014794,2]
[337627469,1725901834324,-500.0,0.00014794,2]
[337627470,1725901834334,-500.0,0.00014794,2]
[337627471,1725901834344,-500.0,0.00014794,2]
[337627472,1725901834353,-500.0,0.00014794,2]
[337627473,1725901834364,-500.0,0.00014794,2]
[337627474,1725901834374,-503.07265322,0.00014794,2]
[337627475,1725901834385,-500.0,0.00014794,2]
[337627476,1725901834395,-500.0,0.00014794,2]
[337627477,1725901834406,-500.0,0.00014794,2]
[337627478,1725901834417,-301.92550375,0.00014794,2]
[337627479,1725901834429,-500.0,0.00014794,2]
[337627480,1725901834440,-500.0,0.00014794,2]
[337627481,1725901834450,-500.0,0.00014794,2]
[337627482,1725901834461,-500.0,0.00014794,2]
[337627483,1725901834472,-500.0,0.00014794,2]
[337627484,1725901834483,-500.0,0.00014794,2]
[337627485,1725901834494,-500.0,0.00014794,2]
[337627486,1725901834508,-500.0,0.00014794,2]
[337627487,1725901834519,-500.0,0.00014794,2]
[337627488,1725901834530,-500.0,0.00014794,2]
[337627489,1725901834541,-500.0,0.00014794,2]
[337627490,1725901834551,-500.0,0.00014794,2]
[337627491,1725901834563,-500.0,0.00014794,2]
[337627492,1725901834586,-500.0,0.00014794,2]
[337627493,1725901834597,-500.0,0.00014794,2]
[337627494,1725901834611,-500.0,0.00014794,2]
[337627495,1725901834623,-626.9596057,0.00014794,2]
[337627496,1725901834633,-500.0,0.00014794,2]
[337627497,1725901834644,-594.04182639,0.00014794,2]
[337627498,1725901834653,-500.0,0.00014794,2]
[337627499,1725901834663,-500.0,0.00014794,2]
[337627500,1725901834673,-500.0,0.00014794,2]
[337627501,1725901834683,-500.0,0.00014794,2]
[337627502,1725901834693,-500.0,0.00014794,2]
[337627503,1725901834704,-500.0,0.00014794,2]
[337627504,1725901834714,-500.0,0.00014794,2]
[337627505,1725901834724,-500.0,0.00014794,2]
[337627506,1725901834734,-500.0,0.00014794,2]
[337627507,1725901834744,-500.0,0.00014794,2]
[337627508,1725901834755,-500.0,0.00014794,2]
[337627509,1725901834764,-500.0,0.00014794,2]
[337627510,1725901834775,-501.97545079,0.00014794,2]
[337627511,1725901834785,-500.87210123,0.00014794,2]
[337627512,1725901834795,-500.59687803,0.00014794,2]
[337627513,1725901834805,-509.87118414,0.00014794,2]
[337627514,1725901834815,-503.17256709,0.00014794,2]
[337627515,1725901834825,-500.77093893,0.00014794,2]
[337627516,1725901834835,-501.89487467,0.00014794,2]
[337627517,1725901834845,-500.0,0.00014794,2]
[337627518,1725901834854,-158.053662,0.00014794,2]
[337627519,1725901834864,-158.053662,0.00014794,2]
[337627520,1725901834874,-158.053662,0.00014794,2]
[337627521,1725901834885,-158.053662,0.00014794,2]
[337627522,1725901834895,-158.053662,0.00014794,2]
[337627523,1725901834905,-158.053662,0.00014794,2]
[337627524,1725901834917,-158.053662,0.00014794,2]
[337627525,1725901834927,-158.053662,0.00014794,2]
[337627526,1725901834937,-165.484931,0.00014794,2]
[337627527,1725901834948,-165.484931,0.00014794,2]
[337627528,1725901834958,-165.484931,0.00014794,2]
[337627529,1725901834969,-500.0,0.00014794,2]
[337627530,1725901834980,-500.0,0.00014794,2]
[337627531,1725901834990,-500.0,0.00014794,2]
[337627532,1725901834999,-500.0,0.00014794,2]
[337627533,1725901835010,-500.0,0.00014794,2]
[337627534,1725901835019,-500.0,0.00014794,2]
[337627535,1725901835029,-500.0,0.00014794,2]
[337627536,1725901835039,-500.0,0.00014794,2]
[337627537,1725901835048,-500.0,0.00014794,2]
[337627538,1725901835058,-500.0,0.00014794,2]
[337627539,1725901835075,-500.0,0.00014794,2]
[337627540,1725901835084,-500.0,0.00014794,2]
[337627541,1725901835092,-500.0,0.00014794,2]
[337627542,1725901835102,-500.0,0.00014794,2]
[337627543,1725901835115,-500.0,0.00014794,2]
[337627544,1725901835125,-471.66159618,0.00014794,2]
[337627545,1725901835134,-2052.27,0.00014794,2]
[337627546,1725901835144,-2052.27,0.00014794,2]
[337627547,1725901835458,-2052.27,0.00014794,2]
[337627548,1725901835478,-2052.27,0.00014794,2]
[337627549,1725901835501,-2052.27,0.00014794,2]
[337627550,1725901835513,-2052.27,0.00014794,2]
[337627551,1725901835522,-2052.27,0.00014794,2]
[337627552,1725901835532,-2052.27,0.00014794,2]
[337627553,1725901835541,-2052.27,0.00014794,2]
[337627554,1725901835552,-2052.27,0.00014794,2]
[337627555,1725901835562,-2052.27,0.00014794,2]
[337627556,1725901835577,-2052.27,0.00014794,2]
[337627557,1725901835586,-2052.27,0.00014794,2]
[337627558,1725901835596,-2052.27,0.00014794,2]
[337627559,1725901835607,-2052.27,0.00014794,2]
[337627560,1725901835617,-2052.27,0.00014794,2]
[337627561,1725901835627,-2052.27,0.00014794,2]
[337627562,1725901835636,-2052.27,0.00014794,2]
[337627563,1725901835645,-2052.27,0.00014794,2]